[Event "Early-Titled-Tuesday-Blitz-May-14-2024"]
[Site "Chess.com"]
[Date "2024.05.14"]
[Round "8"]
[White "Cheer_Down"]
[Black "TitarovVasiliYouTube"]
[Result "0-1"]
[WhiteElo "2459"]
[BlackElo "2621"]
[TimeControl "180+1"]
[EndTime "9:31:22 PDT"]
[Termination "TitarovVasiliYouTube won by resignation"]

1. e4 {[%clk 0:02:55.9]} 1... Nf6 {[%clk 0:02:58.1]} 2. e5 {[%clk 0:02:55.7]}
2... Nd5 {[%clk 0:02:58.6]} 3. c4 {[%clk 0:02:56.3]} 3... Nb6 {[%clk 0:02:58.7]}
4. d4 {[%clk 0:02:56.9]} 4... d6 {[%clk 0:02:59.2]} 5. f4 {[%clk 0:02:57.5]}
5... dxe5 {[%clk 0:02:59.3]} 6. fxe5 {[%clk 0:02:58.4]} 6... Bf5 {[%clk
0:02:59.9]} 7. Nc3 {[%clk 0:02:57.5]} 7... e6 {[%clk 0:03:00.1]} 8. Nf3 {[%clk
0:02:53.4]} 8... Be7 {[%clk 0:03:00.2]} 9. Be2 {[%clk 0:02:43.4]} 9... O-O
{[%clk 0:02:59.3]} 10. O-O {[%clk 0:02:36.5]} 10... f6 {[%clk 0:02:51.2]} 11.
Be3 {[%clk 0:02:29.8]} 11... Nc6 {[%clk 0:02:41.9]} 12. exf6 {[%clk 0:02:29.2]}
12... Bxf6 {[%clk 0:02:42.2]} 13. Qd2 {[%clk 0:02:28.2]} 13... Qe7 {[%clk
0:02:42]} 14. Rad1 {[%clk 0:02:26.2]} 14... Rad8 {[%clk 0:02:41.8]} 15. Qc1
{[%clk 0:02:24.7]} 15... e5 {[%clk 0:02:19.7]} 16. d5 {[%clk 0:02:18.7]} 16...
Nd4 {[%clk 0:02:19.7]} 17. Nxd4 {[%clk 0:02:14.4]} 17... exd4 {[%clk 0:02:17.7]}
18. Bxd4 {[%clk 0:02:13.8]} 18... Bg5 {[%clk 0:02:18.4]} 19. Qa1 {[%clk
0:01:56.3]} 19... Be3+ {[%clk 0:01:15.3]} 20. Bxe3 {[%clk 0:01:55.3]} 20...
Qxe3+ {[%clk 0:01:16.2]} 21. Kh1 {[%clk 0:01:54.7]} 21... Na4 {[%clk 0:00:42.6]}
22. Rf3 {[%clk 0:01:28.6]} 22... Qe5 {[%clk 0:00:33.8]} 23. Nxa4 {[%clk
0:00:58.4]} 23... Qxe2 {[%clk 0:00:32.9]} 24. b3 {[%clk 0:00:56.6]} 24... Be4
{[%clk 0:00:31.4]} 25. Rg3 {[%clk 0:00:54.3]} 25... Rd7 {[%clk 0:00:17.2]} 26.
Nc3 {[%clk 0:00:53.2]} 26... Qc2 {[%clk 0:00:09.4]} 27. Rc1 {[%clk 0:00:49.2]}
27... Rdf7 {[%clk 0:00:08.9]} 28. h3 {[%clk 0:00:19.9]} 28... Qxc1+ {[%clk
0:00:07]} 29. Qxc1 {[%clk 0:00:20.8]} 29... Rf1+ {[%clk 0:00:07.8]} 30. Qxf1
{[%clk 0:00:21.3]} 30... Rxf1+ {[%clk 0:00:08.7]} 31. Kh2 {[%clk 0:00:21]} 31...
Bg6 {[%clk 0:00:07.3]} 32. Nb5 {[%clk 0:00:19.5]} 32... c6 {[%clk 0:00:03.7]}
33. dxc6 {[%clk 0:00:19.2]} 33... bxc6 {[%clk 0:00:04.6]} 34. Nd4 {[%clk
0:00:19.5]} 34... Rf6 {[%clk 0:00:02.2]} 35. c5 {[%clk 0:00:18]} 35... Be4
{[%clk 0:00:01.8]} 36. Re3 {[%clk 0:00:16.6]} 36... Bd5 {[%clk 0:00:01.6]} 37.
a4 {[%clk 0:00:11.8]} 37... Kf7 {[%clk 0:00:01.7]} 38. b4 {[%clk 0:00:11.1]}
38... Rf2 {[%clk 0:00:01.6]} 39. Rg3 {[%clk 0:00:10.5]} 39... Rd2 {[%clk
0:00:01.6]} 40. Nf5 {[%clk 0:00:09.4]} 40... g6 {[%clk 0:00:00.8]} 41. Ne3
{[%clk 0:00:09]} 41... Kg7 {[%clk 0:00:01.7]} 42. Nxd5 {[%clk 0:00:09.1]} 42...
Rxd5 {[%clk 0:00:02.3]} 43. Rc3 {[%clk 0:00:09]} 43... Rd4 {[%clk 0:00:02.7]}
44. b5 {[%clk 0:00:09.3]} 44... Rxa4 {[%clk 0:00:02.5]} 45. bxc6 {[%clk
0:00:08.3]} 45... Ra6 {[%clk 0:00:03.2]} 46. Rd3 {[%clk 0:00:08.8]} 46... Rxc6
{[%clk 0:00:04.1]} 47. Rd7+ {[%clk 0:00:09.4]} 47... Kh6 {[%clk 0:00:04.2]} 48.
Rd5 {[%clk 0:00:09.7]} 48... a5 {[%clk 0:00:04.2]} 49. g4 {[%clk 0:00:09.9]}
49... a4 {[%clk 0:00:04.6]} 50. h4 {[%clk 0:00:07.8]} 50... a3 {[%clk
0:00:04.5]} 51. Rd3 {[%clk 0:00:05.4]} 51... Ra6 {[%clk 0:00:04.4]} 52. Rc3
{[%clk 0:00:05.4]} 52... a2 {[%clk 0:00:04.6]} 53. g5+ {[%clk 0:00:03.9]} 53...
Kh5 {[%clk 0:00:04.6]} 0-1

[Event "Early-Titled-Tuesday-Blitz-May-14-2024"]
[Site "Chess.com"]
[Date "2024.05.14"]
[Round "8"]
[White "The_Machine04"]
[Black "Journey_to_GrandMaster_YT"]
[Result "1-0"]
[WhiteElo "2682"]
[BlackElo "2558"]
[TimeControl "180+1"]
[EndTime "9:31:28 PDT"]
[Termination "The_Machine04 won by resignation"]

1. d4 {[%clk 0:02:57.4]} 1... d6 {[%clk 0:03:00.9]} 2. Nf3 {[%clk 0:02:56.8]}
2... Nf6 {[%clk 0:02:58.8]} 3. Nbd2 {[%clk 0:02:57.3]} 3... Nbd7 {[%clk
0:02:59]} 4. e4 {[%clk 0:02:57.8]} 4... e5 {[%clk 0:02:59.5]} 5. dxe5 {[%clk
0:02:58.7]} 5... dxe5 {[%clk 0:02:59.3]} 6. Bc4 {[%clk 0:02:59.1]} 6... Bd6
{[%clk 0:02:58.6]} 7. O-O {[%clk 0:02:59.8]} 7... O-O {[%clk 0:02:58.5]} 8. c3
{[%clk 0:03:00.3]} 8... Qe7 {[%clk 0:02:58.2]} 9. Qe2 {[%clk 0:03:01]} 9... c6
{[%clk 0:02:58]} 10. a4 {[%clk 0:03:01.7]} 10... a5 {[%clk 0:02:57.8]} 11. Rd1
{[%clk 0:03:01.9]} 11... Nc5 {[%clk 0:02:57.4]} 12. h3 {[%clk 0:03:00.5]} 12...
Bc7 {[%clk 0:02:40.8]} 13. b3 {[%clk 0:02:55.8]} 13... Rd8 {[%clk 0:02:35]} 14.
Ba3 {[%clk 0:02:49.6]} 14... b6 {[%clk 0:02:34.8]} 15. Nf1 {[%clk 0:02:33.2]}
15... Be6 {[%clk 0:01:58.7]} 16. Bxc5 {[%clk 0:02:25.7]} 16... bxc5 {[%clk
0:01:48.8]} 17. Rxd8+ {[%clk 0:02:10.4]} 17... Rxd8 {[%clk 0:01:47.7]} 18. N3d2
{[%clk 0:02:11.3]} 18... Nd7 {[%clk 0:01:37.6]} 19. Bxe6 {[%clk 0:02:10.2]}
19... Qxe6 {[%clk 0:01:38.5]} 20. Nc4 {[%clk 0:02:10.3]} 20... Nb6 {[%clk
0:01:32]} 21. Nxb6 {[%clk 0:02:10.3]} 21... Bxb6 {[%clk 0:01:32.1]} 22. Nd2
{[%clk 0:02:11.2]} 22... Qd7 {[%clk 0:01:08]} 23. Nc4 {[%clk 0:02:04.4]} 23...
Bc7 {[%clk 0:01:07.5]} 24. Kf1 {[%clk 0:02:01.4]} 24... Qd3 {[%clk 0:01:05.6]}
25. Qxd3 {[%clk 0:02:00.6]} 25... Rxd3 {[%clk 0:01:05.4]} 26. Rc1 {[%clk
0:02:01.5]} 26... Kf8 {[%clk 0:01:03.5]} 27. Ke2 {[%clk 0:02:01.8]} 27... Rd8
{[%clk 0:01:03.8]} 28. Rd1 {[%clk 0:02:02.6]} 28... Rxd1 {[%clk 0:01:00]} 29.
Kxd1 {[%clk 0:02:03.5]} 29... Ke7 {[%clk 0:01:00.5]} 30. Ke2 {[%clk 0:02:01]}
30... Ke6 {[%clk 0:01:00.9]} 31. Ne3 {[%clk 0:01:55.7]} 31... g6 {[%clk
0:01:00.6]} 32. g4 {[%clk 0:01:55.5]} 32... Kf6 {[%clk 0:00:45.2]} 33. h4 {[%clk
0:01:53.6]} 33... h5 {[%clk 0:00:44.1]} 34. gxh5 {[%clk 0:01:51.7]} 34... gxh5
{[%clk 0:00:44.1]} 35. Kf3 {[%clk 0:01:52.2]} 35... Bd8 {[%clk 0:00:37.4]} 36.
Kg3 {[%clk 0:01:42.8]} 36... Ke6 {[%clk 0:00:34.8]} 37. Nf5 {[%clk 0:01:39.8]}
37... Bf6 {[%clk 0:00:33.5]} 38. Ne3 {[%clk 0:01:36.6]} 38... Bd8 {[%clk
0:00:32.7]} 39. Nf5 {[%clk 0:01:36.8]} 39... Kf6 {[%clk 0:00:31]} 40. Kh3 {[%clk
0:01:34.9]} 40... Bc7 {[%clk 0:00:26.6]} 41. f3 {[%clk 0:01:33.9]} 41... Bb8
{[%clk 0:00:24.9]} 42. Ne3 {[%clk 0:01:30.4]} 42... Bc7 {[%clk 0:00:24.6]} 43.
Kg3 {[%clk 0:01:28.5]} 43... Kg6 {[%clk 0:00:23.1]} 44. Nf5 {[%clk 0:01:28.2]}
44... Kf6 {[%clk 0:00:22.7]} 45. Kf2 {[%clk 0:01:28.4]} 45... Bd8 {[%clk
0:00:19.4]} 46. Ke2 {[%clk 0:01:28.8]} 46... Ke6 {[%clk 0:00:18.3]} 47. Kd3
{[%clk 0:01:27.9]} 47... Kf6 {[%clk 0:00:12.7]} 48. Kc4 {[%clk 0:01:28.1]} 48...
Bb6 {[%clk 0:00:13.3]} 49. Nd6 {[%clk 0:01:25.8]} 49... Ke6 {[%clk 0:00:11.5]}
50. Ne8 {[%clk 0:01:24.4]} 50... Bd8 {[%clk 0:00:09.1]} 51. Ng7+ {[%clk
0:01:21.2]} 51... Kd6 {[%clk 0:00:09.4]} 52. Nxh5 {[%clk 0:01:20.5]} 52... Bxh4
{[%clk 0:00:09.7]} 53. Ng7 {[%clk 0:01:17.3]} 53... Be1 {[%clk 0:00:10]} 54.
Nf5+ {[%clk 0:01:17]} 54... Kd7 {[%clk 0:00:10.3]} 55. Ne3 {[%clk 0:01:13.2]}
55... Kd6 {[%clk 0:00:10.5]} 56. Ng4 {[%clk 0:01:11.9]} 56... Bd2 {[%clk
0:00:09]} 57. Nf6 {[%clk 0:01:08.1]} 57... Be1 {[%clk 0:00:08.3]} 58. Ne8+
{[%clk 0:01:06.6]} 58... Kd7 {[%clk 0:00:08.7]} 59. Ng7 {[%clk 0:01:06.8]} 59...
Kd6 {[%clk 0:00:08.5]} 60. Nf5+ {[%clk 0:01:00.6]} 60... Kd7 {[%clk 0:00:09.1]}
61. Nh6 {[%clk 0:01:01.3]} 61... Ke6 {[%clk 0:00:03]} 62. Kxc5 {[%clk
0:00:59.3]} 62... Bxc3 {[%clk 0:00:03.7]} 63. Kxc6 {[%clk 0:00:59.9]} 63... Bb4
{[%clk 0:00:04.3]} 64. Nf5 {[%clk 0:00:59.4]} 64... Bd2 {[%clk 0:00:03.4]} 65.
Nd6 {[%clk 0:00:58.1]} 65... Bb4 {[%clk 0:00:02.3]} 66. Nc4 {[%clk 0:00:58.2]}
66... f5 {[%clk 0:00:02.8]} 67. Kb5 {[%clk 0:00:57.4]} 67... fxe4 {[%clk
0:00:03.4]} 68. fxe4 {[%clk 0:00:58.3]} 68... Kf6 {[%clk 0:00:03.6]} 69. Nxa5
{[%clk 0:00:56.2]} 69... Bc3 {[%clk 0:00:03.2]} 70. Nc6 {[%clk 0:00:54.6]} 70...
Kg5 {[%clk 0:00:03.2]} 71. Kc4 {[%clk 0:00:55.3]} 71... Bb2 {[%clk 0:00:01.7]}
72. b4 {[%clk 0:00:55]} 72... Kf4 {[%clk 0:00:02]} 73. Kd5 {[%clk 0:00:55.6]}
73... Bc3 {[%clk 0:00:01.5]} 74. a5 {[%clk 0:00:55]} 74... Bd2 {[%clk
0:00:01.4]} 75. b5 {[%clk 0:00:55]} 75... Be3 {[%clk 0:00:02]} 76. b6 {[%clk
0:00:55.2]} 76... Bf2 {[%clk 0:00:01.2]} 77. b7 {[%clk 0:00:55.2]} 77... Ba7
{[%clk 0:00:02]} 78. Nxa7 {[%clk 0:00:54.8]} 1-0

[Event "Early-Titled-Tuesday-Blitz-May-14-2024"]
[Site "Chess.com"]
[Date "2024.05.14"]
[Round "8"]
[White "Lennis93"]
[Black "xasid81"]
[Result "0-1"]
[WhiteElo "2779"]
[BlackElo "2606"]
[TimeControl "180+1"]
[EndTime "9:31:31 PDT"]
[Termination "xasid81 won by resignation"]

1. d4 {[%clk 0:03:00.9]} 1... d5 {[%clk 0:02:57.6]} 2. Nf3 {[%clk 0:03:01]} 2...
Nf6 {[%clk 0:02:57.1]} 3. c4 {[%clk 0:03:01.6]} 3... c6 {[%clk 0:02:56.3]} 4.
Qc2 {[%clk 0:02:59.8]} 4... e6 {[%clk 0:02:55]} 5. Nbd2 {[%clk 0:02:54.5]} 5...
Nbd7 {[%clk 0:02:48.6]} 6. e4 {[%clk 0:02:49.5]} 6... dxe4 {[%clk 0:02:48.6]} 7.
Nxe4 {[%clk 0:02:49.3]} 7... Nxe4 {[%clk 0:02:49.5]} 8. Qxe4 {[%clk 0:02:49.2]}
8... Nf6 {[%clk 0:02:50.4]} 9. Qe3 {[%clk 0:02:46]} 9... Bb4+ {[%clk 0:02:50.6]}
10. Bd2 {[%clk 0:02:45.7]} 10... Qa5 {[%clk 0:02:50.4]} 11. a3 {[%clk
0:02:18.8]} 11... Bxd2+ {[%clk 0:02:50.1]} 12. Qxd2 {[%clk 0:02:19.7]} 12...
Qxd2+ {[%clk 0:02:49.6]} 13. Kxd2 {[%clk 0:02:20.6]} 13... b6 {[%clk 0:02:49.8]}
14. c5 {[%clk 0:02:19.2]} 14... bxc5 {[%clk 0:02:42.1]} 15. dxc5 {[%clk
0:02:18.8]} 15... Ne4+ {[%clk 0:02:42.2]} 16. Ke3 {[%clk 0:02:19]} 16... Nxc5
{[%clk 0:02:41.9]} 17. Rc1 {[%clk 0:02:19.7]} 17... Nd7 {[%clk 0:02:38]} 18.
Rxc6 {[%clk 0:02:17.5]} 18... O-O {[%clk 0:02:35]} 19. b4 {[%clk 0:02:16.5]}
19... Nf6 {[%clk 0:02:29.8]} 20. Bc4 {[%clk 0:02:09.8]} 20... Bb7 {[%clk
0:02:19.5]} 21. Rc5 {[%clk 0:02:02.7]} 21... Rac8 {[%clk 0:02:01]} 22. Rc1
{[%clk 0:01:54.9]} 22... Rxc5 {[%clk 0:01:57.8]} 23. bxc5 {[%clk 0:01:55.8]}
23... Rc8 {[%clk 0:01:57.9]} 24. Bb5 {[%clk 0:01:55.3]} 24... Bd5 {[%clk
0:01:33.1]} 25. Ne5 {[%clk 0:01:47]} 25... Kf8 {[%clk 0:01:22.9]} 26. f3 {[%clk
0:01:40.2]} 26... Ke7 {[%clk 0:01:20.2]} 27. a4 {[%clk 0:01:40.4]} 27... Ba8
{[%clk 0:00:57.1]} 28. Ba6 {[%clk 0:01:33.4]} 28... Rc7 {[%clk 0:00:54.3]} 29.
Kd4 {[%clk 0:01:33.2]} 29... Nd5 {[%clk 0:00:51.3]} 30. Rb1 {[%clk 0:01:32.6]}
30... f6 {[%clk 0:00:46.8]} 31. Nd3 {[%clk 0:01:24.2]} 31... Bc6 {[%clk
0:00:42]} 32. f4 {[%clk 0:01:12.5]} 32... Rd7 {[%clk 0:00:34]} 33. Kc4 {[%clk
0:01:07.3]} 33... Bxa4 {[%clk 0:00:30]} 34. Bb7 {[%clk 0:01:04.3]} 34... Bc2
{[%clk 0:00:25.4]} 35. Rb2 {[%clk 0:00:51.3]} 35... Ne3+ {[%clk 0:00:22.9]} 36.
Kb5 {[%clk 0:00:49.1]} 36... Bxd3+ {[%clk 0:00:22.4]} 37. Ka4 {[%clk 0:00:46]}
37... Rc7 {[%clk 0:00:20]} 38. c6 {[%clk 0:00:38.3]} 38... Be4 {[%clk
0:00:19.3]} 39. Kb5 {[%clk 0:00:38.2]} 39... Rxb7+ {[%clk 0:00:15.8]} 40. cxb7
{[%clk 0:00:37.9]} 40... Bxb7 {[%clk 0:00:16.7]} 41. Ra2 {[%clk 0:00:34.5]}
41... Bxg2 {[%clk 0:00:14.9]} 42. Rxa7+ {[%clk 0:00:34]} 42... Kd6 {[%clk
0:00:15.6]} 43. Rxg7 {[%clk 0:00:33.1]} 43... Be4 {[%clk 0:00:15.1]} 44. Rf7
{[%clk 0:00:33.4]} 44... Nd5 {[%clk 0:00:14.7]} 45. h4 {[%clk 0:00:31.2]} 45...
Bg6 {[%clk 0:00:11.5]} 46. Rf8 {[%clk 0:00:30.8]} 46... Ke7 {[%clk 0:00:11.7]}
47. Rh8 {[%clk 0:00:29.7]} 47... Nxf4 {[%clk 0:00:11.6]} 48. Kc6 {[%clk
0:00:29.4]} 48... f5 {[%clk 0:00:10.7]} 49. Kc5 {[%clk 0:00:27.3]} 49... Kf6
{[%clk 0:00:10.9]} 50. Kd6 {[%clk 0:00:27.7]} 50... Kg7 {[%clk 0:00:10.5]} 51.
Ra8 {[%clk 0:00:26.2]} 51... Kf6 {[%clk 0:00:10.3]} 52. Rf8+ {[%clk 0:00:25.5]}
52... Bf7 {[%clk 0:00:10.6]} 53. Rh8 {[%clk 0:00:25.8]} 53... h5 {[%clk
0:00:10.6]} 54. Rf8 {[%clk 0:00:23.7]} 54... Ng2 {[%clk 0:00:09.9]} 55. Ra8
{[%clk 0:00:18.8]} 55... Nxh4 {[%clk 0:00:10.1]} 56. Kc5 {[%clk 0:00:18.8]}
56... Ng6 {[%clk 0:00:10.5]} 57. Kd4 {[%clk 0:00:19.7]} 57... h4 {[%clk
0:00:11.2]} 58. Ke3 {[%clk 0:00:20.5]} 58... e5 {[%clk 0:00:11.8]} 59. Kf2
{[%clk 0:00:20.6]} 59... Be6 {[%clk 0:00:12.4]} 60. Ra6 {[%clk 0:00:21]} 60...
f4 {[%clk 0:00:12.7]} 61. Kg2 {[%clk 0:00:21.9]} 61... e4 {[%clk 0:00:11.9]} 62.
Kh2 {[%clk 0:00:22]} 62... Kf5 {[%clk 0:00:11.9]} 63. Ra5+ {[%clk 0:00:21.8]}
63... Ne5 {[%clk 0:00:12.4]} 64. Kh3 {[%clk 0:00:22.1]} 64... e3 {[%clk
0:00:13.1]} 65. Kxh4 {[%clk 0:00:23]} 65... Ke4 {[%clk 0:00:13.2]} 66. Ra4+
{[%clk 0:00:22.9]} 66... Bc4 {[%clk 0:00:13.1]} 67. Kh3 {[%clk 0:00:17.7]} 67...
e2 {[%clk 0:00:13.4]} 68. Ra1 {[%clk 0:00:17.4]} 68... Nf3 {[%clk 0:00:13.7]}
69. Kg2 {[%clk 0:00:17]} 69... e1=Q {[%clk 0:00:13.9]} 70. Rxe1+ {[%clk
0:00:17.5]} 70... Nxe1+ {[%clk 0:00:14.8]} 71. Kf2 {[%clk 0:00:18.1]} 71... Nf3
{[%clk 0:00:14.7]} 0-1

[Event "Early-Titled-Tuesday-Blitz-May-14-2024"]
[Site "Chess.com"]
[Date "2024.05.14"]
[Round "8"]
[White "noblerone"]
[Black "Dolphin_2010"]
[Result "0-1"]
[WhiteElo "2504"]
[BlackElo "2629"]
[TimeControl "180+1"]
[EndTime "9:31:36 PDT"]
[Termination "Dolphin_2010 won on time"]

1. d4 {[%clk 0:03:00.9]} 1... d5 {[%clk 0:02:59.6]} 2. Nf3 {[%clk 0:02:53.9]}
2... Nf6 {[%clk 0:02:59.1]} 3. Bg5 {[%clk 0:02:53.1]} 3... Ne4 {[%clk
0:02:58.2]} 4. Bf4 {[%clk 0:02:53.3]} 4... c5 {[%clk 0:02:58.4]} 5. e3 {[%clk
0:02:50.8]} 5... Nc6 {[%clk 0:02:58.3]} 6. c3 {[%clk 0:02:50.4]} 6... Qb6 {[%clk
0:02:58]} 7. Qb3 {[%clk 0:02:50.6]} 7... c4 {[%clk 0:02:57.6]} 8. Qxb6 {[%clk
0:02:49.5]} 8... axb6 {[%clk 0:02:58.5]} 9. Nfd2 {[%clk 0:02:49.8]} 9... Nxd2
{[%clk 0:02:54.6]} 10. Nxd2 {[%clk 0:02:50.7]} 10... b5 {[%clk 0:02:55]} 11. e4
{[%clk 0:02:48.9]} 11... e6 {[%clk 0:02:51.6]} 12. Be2 {[%clk 0:02:48.1]} 12...
b4 {[%clk 0:02:49.6]} 13. Bf3 {[%clk 0:02:48.6]} 13... bxc3 {[%clk 0:02:47.8]}
14. bxc3 {[%clk 0:02:48.5]} 14... Ra5 {[%clk 0:02:40.5]} 15. O-O {[%clk
0:02:38.6]} 15... Kd7 {[%clk 0:02:33.1]} 16. a4 {[%clk 0:02:33.5]} 16... Bd6
{[%clk 0:02:32.6]} 17. Bxd6 {[%clk 0:02:19]} 17... Kxd6 {[%clk 0:02:33.5]} 18.
Rfb1 {[%clk 0:02:19.2]} 18... Ne7 {[%clk 0:02:23.3]} 19. Rb4 {[%clk 0:01:57.4]}
19... Kc7 {[%clk 0:01:24.9]} 20. h3 {[%clk 0:01:50.4]} 20... Bd7 {[%clk
0:01:23.7]} 21. exd5 {[%clk 0:01:33.6]} 21... exd5 {[%clk 0:01:24.6]} 22. Nxc4
{[%clk 0:01:21.3]} 22... dxc4 {[%clk 0:01:24.1]} 23. Rxb7+ {[%clk 0:01:22]}
23... Kd6 {[%clk 0:01:13.3]} 24. Rb6+ {[%clk 0:01:07.5]} 24... Bc6 {[%clk
0:01:09.7]} 25. Re1 {[%clk 0:01:00.6]} 25... Nd5 {[%clk 0:01:00.5]} 26. Bxd5
{[%clk 0:00:50.6]} 26... Rxd5 {[%clk 0:01:01.4]} 27. Rb4 {[%clk 0:00:43.9]}
27... Ra8 {[%clk 0:01:00.5]} 28. Rxc4 {[%clk 0:00:43.1]} 28... Rda5 {[%clk
0:00:59.3]} 29. Rb4 {[%clk 0:00:32.5]} 29... Rxa4 {[%clk 0:00:58.9]} 30. Rb6
{[%clk 0:00:31.8]} 30... R4a6 {[%clk 0:00:53.7]} 31. Rb2 {[%clk 0:00:29.5]}
31... Ra3 {[%clk 0:00:44.1]} 32. c4 {[%clk 0:00:29.1]} 32... Ra1 {[%clk
0:00:44]} 33. Rxa1 {[%clk 0:00:22.4]} 33... Rxa1+ {[%clk 0:00:44.9]} 34. Kh2
{[%clk 0:00:23]} 34... Rc1 {[%clk 0:00:43.8]} 35. d5 {[%clk 0:00:19.6]} 35...
Bd7 {[%clk 0:00:43.1]} 36. Rb4 {[%clk 0:00:18.9]} 36... Ra1 {[%clk 0:00:24.6]}
37. Kg3 {[%clk 0:00:18.7]} 37... Ra4 {[%clk 0:00:22.6]} 38. Rb6+ {[%clk
0:00:17.2]} 38... Kc7 {[%clk 0:00:20.5]} 39. c5 {[%clk 0:00:17.6]} 39... Rc4
{[%clk 0:00:21]} 40. d6+ {[%clk 0:00:12.9]} 40... Kc8 {[%clk 0:00:21.6]} 41. Ra6
{[%clk 0:00:09]} 41... Rxc5 {[%clk 0:00:20.1]} 42. Ra8+ {[%clk 0:00:09.2]} 42...
Kb7 {[%clk 0:00:20.9]} 43. Rh8 {[%clk 0:00:06]} 43... h6 {[%clk 0:00:15.9]} 44.
Rh7 {[%clk 0:00:06.5]} 44... Rg5+ {[%clk 0:00:16]} 45. Kh2 {[%clk 0:00:06.7]}
45... Kc6 {[%clk 0:00:14.1]} 46. f3 {[%clk 0:00:07.3]} 46... Kxd6 {[%clk
0:00:14]} 47. Rh8 {[%clk 0:00:08.2]} 47... Rc5 {[%clk 0:00:13.1]} 48. Ra8 {[%clk
0:00:06.9]} 48... Ke7 {[%clk 0:00:12.7]} 49. Kg3 {[%clk 0:00:06.6]} 49... h5
{[%clk 0:00:11.4]} 50. h4 {[%clk 0:00:05.1]} 50... g6 {[%clk 0:00:10.6]} 51. Ra7
{[%clk 0:00:05.3]} 51... Rd5 {[%clk 0:00:10.2]} 52. Rb7 {[%clk 0:00:05.6]} 52...
Kf6 {[%clk 0:00:10.6]} 53. Rb6+ {[%clk 0:00:05.8]} 53... Be6 {[%clk 0:00:11.1]}
54. Ra6 {[%clk 0:00:05.8]} 54... Rd2 {[%clk 0:00:10.9]} 55. Rb6 {[%clk
0:00:03.2]} 55... Kg7 {[%clk 0:00:11.4]} 56. Ra6 {[%clk 0:00:02.7]} 56... Bc4
{[%clk 0:00:11.9]} 57. Ra1 {[%clk 0:00:02.6]} 57... Rc2 {[%clk 0:00:09]} 58. Rb1
{[%clk 0:00:02.6]} 58... Kh6 {[%clk 0:00:08.5]} 59. Ra1 {[%clk 0:00:02.6]} 59...
f6 {[%clk 0:00:07.8]} 60. Rb1 {[%clk 0:00:02.7]} 60... g5 {[%clk 0:00:08.1]} 61.
Rg1 {[%clk 0:00:01.6]} 61... Kg6 {[%clk 0:00:06.8]} 0-1

[Event "Early-Titled-Tuesday-Blitz-May-14-2024"]
[Site "Chess.com"]
[Date "2024.05.14"]
[Round "8"]
[White "simaopdias"]
[Black "Nasrin_Babayeva"]
[Result "0-1"]
[WhiteElo "2251"]
[BlackElo "1973"]
[TimeControl "180+1"]
[EndTime "9:31:36 PDT"]
[Termination "Nasrin_Babayeva won on time"]

1. d4 {[%clk 0:03:00.1]} 1... d6 {[%clk 0:02:58]} 2. Nf3 {[%clk 0:03:01]} 2...
Bg4 {[%clk 0:02:57.6]} 3. c4 {[%clk 0:03:01.9]} 3... Bxf3 {[%clk 0:02:57.2]} 4.
exf3 {[%clk 0:03:02]} 4... Nd7 {[%clk 0:02:56]} 5. Bd3 {[%clk 0:03:02.9]} 5...
e6 {[%clk 0:02:54.2]} 6. O-O {[%clk 0:03:03.4]} 6... Ngf6 {[%clk 0:02:54.8]} 7.
Re1 {[%clk 0:03:04]} 7... Be7 {[%clk 0:02:55.5]} 8. Nc3 {[%clk 0:03:04.6]} 8...
O-O {[%clk 0:02:56.1]} 9. Bg5 {[%clk 0:03:05.2]} 9... h6 {[%clk 0:02:55.6]} 10.
Be3 {[%clk 0:03:05]} 10... a5 {[%clk 0:02:53.3]} 11. Qe2 {[%clk 0:03:05.4]}
11... Re8 {[%clk 0:02:52.9]} 12. Rad1 {[%clk 0:03:05.4]} 12... d5 {[%clk
0:02:51.8]} 13. a3 {[%clk 0:03:02]} 13... c6 {[%clk 0:02:47.9]} 14. Bf4 {[%clk
0:02:59.1]} 14... dxc4 {[%clk 0:02:44.7]} 15. Bxc4 {[%clk 0:02:58.9]} 15... b5
{[%clk 0:02:43.4]} 16. Ba2 {[%clk 0:02:57.9]} 16... Nb6 {[%clk 0:02:43.2]} 17.
Ne4 {[%clk 0:02:54.3]} 17... Nbd5 {[%clk 0:02:40.3]} 18. Bg3 {[%clk 0:02:53.6]}
18... Qb6 {[%clk 0:02:36.3]} 19. Qd3 {[%clk 0:02:22.1]} 19... Red8 {[%clk
0:02:31.6]} 20. Bb1 {[%clk 0:02:20.4]} 20... b4 {[%clk 0:02:22.5]} 21. Nxf6+
{[%clk 0:02:13.7]} 21... Nxf6 {[%clk 0:02:21.9]} 22. Be5 {[%clk 0:02:14.2]}
22... Qb5 {[%clk 0:02:03.3]} 23. Qc2 {[%clk 0:02:04.7]} 23... g6 {[%clk
0:01:53.4]} 24. Rc1 {[%clk 0:02:00.9]} 24... Rac8 {[%clk 0:01:37.6]} 25. a4
{[%clk 0:01:59.9]} 25... Qd5 {[%clk 0:01:34.5]} 26. b3 {[%clk 0:01:51.8]} 26...
c5 {[%clk 0:01:34.2]} 27. dxc5 {[%clk 0:01:50.8]} 27... Rxc5 {[%clk 0:01:29.6]}
28. Qb2 {[%clk 0:01:50.5]} 28... Rxc1 {[%clk 0:01:24.1]} 29. Rxc1 {[%clk
0:01:51.4]} 29... Qd2 {[%clk 0:01:16.9]} 30. h3 {[%clk 0:01:13.7]} 30... Qxb2
{[%clk 0:00:55.3]} 31. Bxb2 {[%clk 0:01:12.1]} 31... Rd2 {[%clk 0:00:55.2]} 32.
Be5 {[%clk 0:01:10.6]} 32... Kg7 {[%clk 0:00:35.8]} 33. Kf1 {[%clk 0:01:02.7]}
33... Rd5 {[%clk 0:00:25.5]} 34. Bb2 {[%clk 0:00:59.9]} 34... Bc5 {[%clk
0:00:22.4]} 35. Ke1 {[%clk 0:00:58.6]} 35... Bxf2+ {[%clk 0:00:20.9]} 36. Kxf2
{[%clk 0:00:54.8]} 36... Rd2+ {[%clk 0:00:21.3]} 37. Ke3 {[%clk 0:00:52.2]}
37... Rxb2 {[%clk 0:00:22.2]} 38. Bc2 {[%clk 0:00:42.3]} 38... Nd5+ {[%clk
0:00:21.9]} 39. Kd2 {[%clk 0:00:35.6]} 39... Nc3 {[%clk 0:00:09.3]} 40. Re1
{[%clk 0:00:31]} 40... Kf6 {[%clk 0:00:09.3]} 41. Kc1 {[%clk 0:00:31.1]} 41...
Ra2 {[%clk 0:00:09.1]} 42. Kd2 {[%clk 0:00:22.9]} 42... Ke7 {[%clk 0:00:06.8]}
43. Kd3 {[%clk 0:00:19.6]} 43... Kd6 {[%clk 0:00:06.1]} 44. g4 {[%clk
0:00:18.3]} 44... Nd5 {[%clk 0:00:06.3]} 45. Re4 {[%clk 0:00:15]} 45... g5
{[%clk 0:00:06.4]} 46. Kd2 {[%clk 0:00:08]} 46... Nf4 {[%clk 0:00:06.2]} 47. Kc1
{[%clk 0:00:04.8]} 47... Ra1+ {[%clk 0:00:03.8]} 48. Bb1 {[%clk 0:00:04.4]}
48... Ra3 {[%clk 0:00:01.6]} 49. Kb2 {[%clk 0:00:04]} 49... Nxh3 {[%clk
0:00:01.3]} 50. Rd4+ {[%clk 0:00:02.3]} 50... Ke5 {[%clk 0:00:00.6]} 51. Rc4
{[%clk 0:00:02.4]} 51... Kf6 {[%clk 0:00:01.1]} 52. Be4 {[%clk 0:00:01.7]} 52...
Nf4 {[%clk 0:00:01.4]} 53. Rc5 {[%clk 0:00:01.9]} 53... Ne2 {[%clk 0:00:01.3]}
54. Rxa5 {[%clk 0:00:01.4]} 54... Nd4 {[%clk 0:00:01.6]} 0-1